fUST/lending_fUST_20250829
["ID","MTS","AMOUNT","RATE_DAILY","PERIOD"]
[381989852,1756465842008,-480.0,0.00035616,10]
[381989853,1756465842018,-480.0,0.00035616,10]
[381989854,1756465842027,-480.0,0.00035616,10]
[381989855,1756465842037,-480.0,0.00035616,10]
[381989856,1756465842046,-480.0,0.00035616,10]
[381989857,1756465842055,-480.0,0.00035616,10]
[381989858,1756465842065,-480.0,0.00035616,10]
[381989859,1756465842074,-480.0,0.00035616,10]
[381989860,1756465842083,-480.0,0.00035616,10]
[381989861,1756465842092,-410.59023622,0.00035616,10]
[381989862,1756465842102,-1129.39,0.00035616,10]
[381989863,1756465842111,-480.0,0.00035616,10]
[381989864,1756465842120,-482.08202655,0.00035616,10]
[381989865,1756465842129,-480.0,0.00035616,10]
[381989866,1756465842139,-482.45231582,0.00035616,10]
[381989867,1756465842149,-480.0,0.00035616,10]
[381989868,1756465842159,-480.44135089,0.00035616,10]
[381989869,1756465842168,-480.0,0.00035616,10]
[381989870,1756465842177,-480.0,0.00035616,10]
[381989871,1756465842187,-480.0,0.00035616,10]
[381989872,1756465842196,-569.98402718,0.00035616,10]
[381989873,1756465842206,-2316.89,0.00035616,10]
[381989874,1756465842216,-480.0,0.00035616,10]
[381989875,1756465842225,-482.34994194,0.00035616,10]
[381989876,1756465842237,-480.0,0.00035616,10]
[381989877,1756465842246,-480.0,0.00035616,10]
[381989878,1756465842255,-492.48,0.00035616,10]
[381989879,1756465842265,-480.0,0.00035616,10]
[381989880,1756465842274,-796.44,0.00035616,10]
[381989881,1756465842284,-480.0,0.00035616,10]
[381989882,1756465842293,-480.0,0.00035616,10]
[381989883,1756465842303,-481.00978081,0.00035616,10]
[381989884,1756465842314,-1149.07,0.00035616,10]
[381989885,1756465842325,-561.91713147,0.00035616,10]
[381989886,1756465842334,-481.96265363,0.00035616,10]
[381989887,1756465842344,-480.0,0.00035616,10]
[381989888,1756465842360,-3.93045571,0.00035616,10]
[381990046,1756465855271,197.0,0.00022,2]
[381990075,1756466292057,187.912341,0.00013699,2]
[381990094,1756466844133,-245.15797697,0.00019986,2]
[381990096,1756466854094,-187.912341,0.00020187,2]
[381990097,1756466854120,-216.21406313,0.00024,7]
[381990098,1756466854146,-216.21406313,0.00024,7]
[381990099,1756466854278,-178.181455,0.0002522,2]
[381990100,1756466854300,-258.649722,0.00025778,2]
[381990101,1756466854323,-231.19729588,0.00026,10]
[381990110,1756466916392,6849.496636,0.00017,2]
[381990114,1756466945066,-156.8,0.00018,2]
[381990115,1756466953093,-7202.49539098,0.00018,2]
[381990116,1756466953115,-285.07892968,0.00019685,2]
[381990117,1756466953136,-300.0,0.00019785,2]
[381990118,1756466953278,-5000.0,0.00019786,2]
[381990119,1756466953299,-904.02557113,0.0002,2]
[381990120,1756466953321,-186.0,0.00021548,2]
[381990121,1756466953340,-613.03801579,0.000217,2]
[381990122,1756466953359,-355.35352368,0.00022,2]
[381990123,1756466953379,-192.92474915,0.000221,2]
[381990124,1756466953398,-279.06846716,0.000225,2]
[381990125,1756466953417,-457.02666089,0.00024,2]
[381990153,1756467031931,-617.99107297,0.00024403,6]
[381990172,1756467032242,-143.15210446,0.00024403,6]
[381990173,1756467032254,-337.07291127,0.00024403,6]
[381990200,1756467037959,-3901.7839113,0.00024403,6]
[381990201,1756467037969,-505.62482702,0.0002465,2]
[381990202,1756467037978,-200.0,0.00024658,2]
[381990203,1756467037988,-1200.0,0.00024999,2]
[381990204,1756467037998,-300.0,0.00024999,2]
[381990205,1756467038008,-17607.86903134,0.00025,2]
[381990206,1756467038018,-797.73712674,0.00026,10]
[381990207,1756467038027,-27162.42782136,0.00026,30]
[381990208,1756467038038,-165.24509489,0.00026044,2]
[381990209,1756467038047,-187.912341,0.00026676,2]
[381990210,1756467038057,-417.15472785,0.00027,7]
[381990211,1756467038066,-2301.04922796,0.00027,2]
[381990212,1756467038076,-154.84,0.00027687,15]
[381990213,1756467038086,-154.84,0.00027787,15]
[381990214,1756467038096,-154.84,0.00027887,15]
[381990215,1756467038106,-154.84,0.00027987,15]
[381990216,1756467038116,-907.50463492,0.00028,5]
[381990217,1756467038126,-154.84,0.00028087,15]
[381990218,1756467038136,-154.84,0.00028187,15]
[381990219,1756467038145,-1000.0,0.00028237,30]
[381990220,1756467038154,-154.84,0.00028287,15]
[381990221,1756467038164,-160.0,0.0002835,2]
[381990222,1756467038173,-643.310368,0.00028351,2]
[381990223,1756467038184,-154.84,0.00028387,15]
[381990224,1756467038194,-154.84,0.00028487,15]
[381990225,1756467038203,-666.0,0.00028538,2]
[381990226,1756467038212,-155.9,0.00028538,20]
[381990227,1756467038221,-1233.3069371,0.00028545,2]
[381990228,1756467038230,-164.815228,0.00028574,2]
[381990229,1756467038240,-154.84,0.00028587,15]
[381990230,1756467038249,-380.0,0.00028673,2]
[381990231,1756467038258,-154.84,0.00028687,15]
[381990232,1756467038268,-154.84,0.00028787,15]
[381990233,1756467038277,-154.84,0.00028887,15]
[381990234,1756467038287,-260.0,0.00028898,2]
[381990235,1756467038296,-154.84,0.00028987,15]
[381990236,1756467038306,-154.84,0.00029087,15]
[381990237,1756467038315,-154.84,0.00029187,15]
[381990238,1756467038324,-500.0,0.00029242,2]
[381990239,1756467038333,-154.84,0.00029287,15]
[381990240,1756467038342,-154.84,0.00029387,15]
[381990241,1756467038351,-360.0,0.00029446,2]
[381990242,1756467038361,-154.84,0.00029487,15]
[381990243,1756467038371,-154.84,0.00029587,15]
[381990244,1756467038380,-154.84,0.00029687,15]
[381990245,1756467038389,-216.21406313,0.00029699,2]
[381990246,1756467038400,-217.30324474,0.00029706,2]
[381990247,1756467038409,-160.0,0.00029706,2]
[381990248,1756467038418,-160.0,0.00029706,2]
[381990249,1756467038428,-500.0,0.00029728,2]
[381990250,1756467038437,-154.84,0.00029787,15]
[381990251,1756467038447,-154.84,0.00029887,15]
[381990252,1756467038456,-500.0,0.00029909,2]
[381990253,1756467038466,-154.84,0.00029987,15]
[381990254,1756467038475,-460.0,0.00029994,2]
[381990255,1756467038484,-500.0,0.00030034,7]
[381990256,1756467038494,-500.0,0.00030087,2]
[381990257,1756467038503,-153.80442326,0.00030087,15]
[381990258,1756467038512,-152.05696901,0.00030087,15]
[381990259,1756467038521,-151.31136237,0.00030087,15]
[381990260,1756467038531,-151.70976807,0.00030087,15]
[381990261,1756467038540,-151.55868899,0.00030087,15]
[381990262,1756467038550,-500.0,0.00030087,15]
[381990263,1756467038560,-151.0,0.00030087,15]
[381990264,1756467038569,-153.71832537,0.00030087,15]
[381990265,1756467038579,-154.84,0.00030087,15]
[381990266,1756467038588,-500.0,0.00030172,7]
[381990267,1756467038597,-154.84,0.00030187,15]
[381990268,1756467038707,-500.0,0.00030261,7]
[381990269,1756467038716,-154.84,0.00030287,15]
[381990270,1756467038726,-199.0,0.00030318,120]
[381990271,1756467038737,-500.0,0.00030327,7]
[381990272,1756467038747,-928.56697197,0.00030327,2]
[381990273,1756467038756,-500.0,0.00030361,2]
[381990274,1756467038765,-500.0,0.00030361,15]
[381990275,1756467038775,-226.46831206,0.00030361,15]
[381990276,1756467038784,-904.27092079,0.00030387,2]
[381990277,1756467038794,-154.84,0.00030387,15]
[381990278,1756467038803,-441.11,0.00030417,10]
[381990279,1756467038812,-367.59,0.00030417,10]
[381990280,1756467038823,-4450.87091852,0.00030418,4]
[381990281,1756467038832,-500.0,0.00030426,2]
[381990282,1756467038841,-500.0,0.00030426,2]
[381990283,1756467038851,-500.0,0.00030426,2]
[381990284,1756467038860,-164.11664783,0.00030426,2]
[381990285,1756467038870,-475.35840087,0.00030426,2]
[381990286,1756467038879,-242.90839276,0.00030426,2]
[381990287,1756467038888,-266.90333743,0.00030426,2]
[381990288,1756467038898,-500.0,0.00030426,2]
[381990289,1756467038907,-500.0,0.00030426,2]
[381990290,1756467038916,-500.0,0.00030426,2]
[381990291,1756467038926,-500.0,0.00030426,2]
[381990292,1756467038935,-431.44856293,0.00030426,2]
[381990293,1756467038945,-500.0,0.00030426,2]
[381990294,1756467038954,-500.0,0.00030426,2]
[381990295,1756467038963,-241.90731083,0.00030426,2]
[381990296,1756467038973,-500.0,0.00030426,2]
[381990297,1756467038983,-500.0,0.00030426,2]
[381990298,1756467038992,-500.0,0.00030426,2]
[381990299,1756467039002,-500.0,0.00030426,2]
[381990300,1756467039012,-500.0,0.00030426,2]
[381990301,1756467039022,-304.67235448,0.00030426,2]
[381990302,1756467039032,-500.0,0.00030426,2]
[381990303,1756467039041,-500.0,0.00030426,2]
[381990304,1756467039051,-500.0,0.00030426,2]
[381990305,1756467039062,-500.0,0.00030426,2]
[381990306,1756467039072,-500.0,0.00030426,2]
[381990307,1756467039081,-500.0,0.00030426,2]
[381990308,1756467039091,-500.0,0.00030426,2]
[381990309,1756467039100,-500.0,0.00030426,2]
[381990310,1756467039110,-188161.73125649,0.00030427,20]
[381990311,1756467039120,-300.0,0.00030427,2]
[381990312,1756467039129,-808.87436443,0.00030427,2]
[381990313,1756467039139,-254.52889285,0.00030427,2]
[381990314,1756467039148,-296.57384713,0.00030427,2]
[381990315,1756467039158,-326.67392264,0.00030427,2]
[381990316,1756467039167,-291.54868133,0.00030427,2]
[381990317,1756467039177,-636.58437177,0.00030427,2]
[381990318,1756467039186,-156.45845109,0.00030427,2]
[381990319,1756467039196,-157.467313,0.00030427,2]
[381990320,1756467039206,-507.0691128,0.00030427,2]
[381990321,1756467039215,-179.11653102,0.00030427,2]
[381990322,1756467039224,-467.37791021,0.00030427,2]
[381990323,1756467039234,-981.85615514,0.00030427,2]
[381990324,1756467039243,-188.97704558,0.00030427,2]
[381990325,1756467039252,-650.52895612,0.00030427,2]
[381990326,1756467039262,-903.5697069,0.00030427,2]
[381990327,1756467039271,-478.22999117,0.00030427,2]
[381990328,1756467039280,-163.13660562,0.00030427,2]
[381990329,1756467039289,-384.60678864,0.00030427,2]
[381990330,1756467039299,-201.25214817,0.00030427,2]
[381990331,1756467039308,-166.42925647,0.00030427,2]
[381990332,1756467039318,-150.18408949,0.00030427,2]
[381990333,1756467039328,-2033.73842492,0.00030427,2]
[381990334,1756467039338,-160.48845061,0.00030427,2]
[381990335,1756467039351,-258.26706545,0.00030427,2]
[381990336,1756467039361,-154.91814989,0.00030487,15]
[381990337,1756467039371,-200.24,0.000305,7]
[381990338,1756467039384,-1504.47,0.000305,7]
[381990339,1756467039395,-370.9,0.000305,7]
[381990340,1756467039404,-560.0,0.00030542,2]
[381990341,1756467039414,-500.0,0.00030635,2]
[381990342,1756467039423,-500.0,0.00030635,15]
[381990344,1756467039434,-500.0,0.00030909,2]
[381990345,1756467039444,-500.0,0.00030909,15]
[381990346,1756467039456,-154.0,0.00031,120]
[381990347,1756467039468,-660.0,0.0003109,2]
[381990348,1756467039478,-500.0,0.00031183,2]
[381990349,1756467039488,-500.0,0.00031183,15]
[381990350,1756467039499,-500.0,0.00031246,7]
[381990351,1756467039507,-162.6457,0.00031325,15]
[381990352,1756467039517,-553.6997669,0.00031457,2]
[381990353,1756467039527,-500.0,0.00031457,15]
[381990354,1756467039536,-928.56697194,0.00031594,2]
[381990355,1756467039548,-760.0,0.00031638,2]
[381990356,1756467039559,-500.0,0.00031664,7]
[381990357,1756467039569,-500.0,0.00031731,15]
[381990358,1756467039579,-162.6457,0.00031938,15]
[381990359,1756467039588,-152.802298,0.00031938,15]
[381990360,1756467039597,-500.0,0.00031946,7]
[381990361,1756467039608,-500.0,0.00032005,15]
[381990362,1756467039617,-860.0,0.00032186,2]
[381990363,1756467039627,-500.0,0.00032279,15]
[381990364,1756467039636,-1056.24834409,0.00032389,4]
[381990365,1756467039646,-162.6457,0.0003255,15]
[381990366,1756467039655,-152.802298,0.0003255,15]
[381990367,1756467039668,-500.0,0.00032553,15]
[381990368,1756467039678,-1504.47,0.000326,7]
[381990369,1756467039687,-370.9,0.000326,7]
[381990370,1756467039697,-500.0,0.00032615,7]
[381990371,1756467039707,-960.0,0.00032734,2]
[381990372,1756467039717,-500.0,0.00032764,7]
[381990373,1756467039726,-200.24,0.000328,7]
[381990374,1756467039737,-267.50793468,0.00032827,15]
[381990375,1756467039747,-928.56697194,0.00032862,2]
[381990376,1756467039759,-500.0,0.00032984,7]
[381990377,1756467039772,-500.0,0.00033125,7]
[381990378,1756467039785,-187.912341,0.00033165,2]
[381990379,1756467039797,-1060.0,0.00033282,2]
[381990381,1756467039807,-500.0,0.00033973,5]
[381990383,1756467039819,-501.93303177,0.00033973,5]
[381990386,1756467039831,-500.0,0.00033973,5]
[381990388,1756467039843,-500.0,0.00033973,5]
[381990390,1756467039855,-518.05799485,0.00033973,5]
[381990393,1756467039867,-500.0,0.00033973,5]
[381990395,1756467039879,-500.0,0.00033973,5]
[381990397,1756467039891,-501.41096466,0.00033973,5]
[381990400,1756467039904,-500.0,0.00033973,5]
[381990402,1756467039915,-501.05211284,0.00033973,5]
[381990404,1756467039927,-100000.0,0.0003399,2]
[381990407,1756467039938,-928.56697194,0.00034129,2]
[381990410,1756467039949,-353.83113941,0.00034185,2]
[381990413,1756467039961,-1413.9092331,0.00034185,2]
[381990418,1756467039973,-728.02280794,0.00034193,2]
[381990421,1756467039985,-793.6019636,0.00034243,30]
[381990424,1756467039997,-153.0,0.00034517,30]
[381990428,1756467040009,-153.0,0.00034517,30]
[381990432,1756467040020,-163.6599908,0.00034517,30]
[381990435,1756467040031,-582.326383,0.00034517,30]
[381990438,1756467040040,-294.6377317,0.00034517,30]
[381990440,1756467040052,-294.6377317,0.00034517,30]
[381990442,1756467040063,-153.0,0.00034517,30]
[381990445,1756467040074,-153.0,0.00034517,30]
[381990447,1756467040086,-161.2295834,0.00034517,30]
[381990449,1756467040098,-582.326383,0.00034517,30]
[381990451,1756467040109,-1000.0,0.00034521,5]
[381990453,1756467040121,-1000.0,0.00034521,5]
[381990454,1756467040134,-503.53147026,0.00034521,5]
[381990455,1756467040147,-500.0,0.00034521,5]
[381990456,1756467040159,-154.0,0.000346,120]
[381990457,1756467040171,-128920.609132,0.0003498,2]
[381990458,1756467040181,-436.13662156,0.0003498,2]
[381990459,1756467040191,-160.0,0.00035024,2]
[381990460,1756467040201,-160.0,0.00035024,2]
[381990461,1756467040212,-845.57753514,0.00035024,2]
[381990462,1756467040223,-160.0,0.00035024,2]
[381990463,1756467040235,-160.0,0.00035024,2]
[381990464,1756467040248,-232.6790651,0.00035024,2]
[381990465,1756467040260,-160.0,0.00035024,2]
[381990466,1756467040270,-425.57542551,0.00035024,2]
[381990467,1756467040281,-1022.1386741,0.00035068,5]
[381990468,1756467040291,-500.0,0.00035073,5]
[381990469,1756467040303,-501.46911605,0.00035073,5]
[381990470,1756467040315,-500.0,0.00035073,5]
[381990471,1756467040326,-509.50373947,0.00035073,5]
[381990472,1756467040336,-217.66320664,0.00035073,5]
[381990474,1756467040347,-500.0,0.00035073,5]
[381990476,1756467040357,-501.29449077,0.00035073,5]
[381990478,1756467040369,-500.41653827,0.00035073,5]
[381990480,1756467040379,-646.32444962,0.00035073,5]
[381990481,1756467040390,-500.0,0.00035073,5]
[381990482,1756467040401,-501.38259314,0.00035073,5]
[381990484,1756467040412,-500.0,0.00035073,5]
[381990485,1756467040424,-506.80487785,0.00035073,5]
[381990486,1756467040435,-500.0,0.00035073,5]
[381990487,1756467040446,-500.0,0.00035073,5]
[381990488,1756467040457,-501.95728844,0.00035073,5]
[381990489,1756467040468,-500.0,0.00035073,5]
[381990490,1756467040478,-8232.44403832,0.00035073,7]
[381990491,1756467040599,-8351.929086,0.00035073,7]
[381990550,1756467042986,-177.69854136,0.00033,7]
[381990569,1756467113799,707.43076711,0.00024204,2]
[381990592,1756467287800,161.422794,0.00013699,2]
[381990619,1756467946136,-2599.4866317,0.00019588,2]
[381990620,1756468029102,-1731.47431413,0.00019588,2]
[381990621,1756468162126,-331.88991522,0.00019392,2]
[381990622,1756468166265,-4668.11008478,0.00019392,2]
[381990623,1756468166286,-161.422794,0.00020187,2]
[381990624,1756468171078,-216.21406313,0.00024,7]
[381990625,1756468173091,-210.79971477,0.00024403,2]
[381990626,1756468173112,-510.40924109,0.000245,2]
[381990627,1756468173132,-250.0,0.000245,2]
[381990628,1756468173153,-250.0,0.00026183,2]
[381990629,1756468173176,-161.422794,0.00026676,2]
[381990630,1756468173197,-500.0,0.00029005,2]
[381990631,1756468173218,-666.0,0.00029281,2]
[381990632,1756468173241,-162.6457,0.00029348,20]
[381990633,1756468173262,-1181.0,0.00029563,2]
[381990634,1756468173284,-162.6457,0.00029564,20]
[381990635,1756468173304,-152.802298,0.00029564,20]
[381990636,1756468173326,-312.8345011,0.00029805,30]
[381990637,1756468173347,-164.815228,0.00029921,2]
[381990638,1756468173368,-2250.0,0.00030432,60]
[381990639,1756468173389,-500.0,0.00031134,7]
[381990640,1756468173409,-500.0,0.00031227,7]
[381990641,1756468173430,-500.0,0.00031733,7]
[381990642,1756468173451,-132.40087448,0.00031836,7]
[381990643,1756468173902,2241.96712579,0.00024159,6]
[381990681,1756468232053,-1200.0,0.00024159,6]
[381990795,1756468238165,-1558.03287421,0.00024159,6]
[381990797,1756468238175,-367.59912552,0.00031836,7]
[381990810,1756468238300,-500.0,0.00032098,7]
[381990812,1756468238310,-321.655184,0.00032336,2]
[381990814,1756468238320,-155.9,0.00032621,33]
[381990817,1756468238330,-54.98052374,0.00033,7]
[381990819,1756468238339,-161.422794,0.00033165,2]
[381990821,1756468238349,-500.0,0.00033459,7]
[381990823,1756468238358,-791.2370557,0.00033595,2]
[381990825,1756468238368,-10686.53995316,0.00033695,2]
[381990827,1756468238378,-161.2295834,0.00033695,30]
[381990829,1756468238388,-153.0,0.00033695,30]
[381990831,1756468238398,-153.0,0.00033695,30]
[381990833,1756468238407,-582.326383,0.00033695,30]
[381990835,1756468238416,-294.6377317,0.00033695,30]
[381990837,1756468238427,-294.6377317,0.00033695,30]
[381990838,1756468238437,-582.326383,0.00033695,30]
[381990841,1756468238447,-161.2295834,0.00033695,30]
[381990843,1756468238456,-153.0,0.00033695,30]
[381990845,1756468238465,-294.6377317,0.00033695,30]
[381990847,1756468238475,-161.2295834,0.00033695,30]
[381990849,1756468238484,-582.326383,0.00033695,30]
[381990851,1756468238494,-153.0,0.00033695,30]
[381990853,1756468238503,-161.2295834,0.00033695,30]
[381990855,1756468238512,-587.1238775,0.00033695,30]
[381990857,1756468238522,-626.3047589,0.00033695,30]
[381990858,1756468238531,-161.2295834,0.00033695,30]
[381990860,1756468238540,-153.0,0.00033695,30]
[381990862,1756468238551,-153.0,0.00033695,30]
[381990865,1756468238560,-161.2295834,0.00033695,30]
[381990867,1756468238570,-161.2295834,0.00033695,30]
[381990869,1756468238579,-155.7204829,0.00033695,30]
[381990871,1756468238591,-500.0,0.00033792,7]
[381990873,1756468238600,-160.0,0.0003383,2]
[381990875,1756468238609,-160.0,0.0003383,2]
[381990877,1756468238618,-160.0,0.0003383,2]
[381990879,1756468238628,-845.57753514,0.0003383,2]
[381990881,1756468238637,-232.6790651,0.0003383,2]
[381990883,1756468238646,-160.0,0.0003383,2]
[381990885,1756468238655,-217.30324474,0.0003383,2]
[381990887,1756468238664,-160.0,0.0003383,2]
[381990889,1756468238673,-425.57542551,0.0003383,2]
[381990890,1756468238683,-216.21406313,0.00033841,2]
[381990892,1756468238694,-500.0,0.00033951,7]
[381990895,1756468238703,-500.0,0.00033953,7]
[381990897,1756468238713,-500.0,0.00033966,7]
[381990898,1756468238723,-151.0,0.00034517,30]
[381990901,1756468238733,-151.0,0.00034517,30]
[381990902,1756468238743,-151.0,0.00034517,30]
[381990904,1756468238754,-200.56674716,0.00034517,30]
[381990907,1756468238764,-151.0,0.00034517,30]
[381990909,1756468238774,-152.00669618,0.00034517,30]
[381990911,1756468238783,-151.30882845,0.00034517,30]
[381990913,1756468238793,-639.5517186,0.00034727,2]
[381990915,1756468238802,-500.0,0.0003476,7]
[381990917,1756468238812,-151.0,0.00034791,30]
[381990919,1756468238821,-250.89996808,0.00034791,30]
[381990921,1756468238831,-151.0,0.00034791,30]
[381990922,1756468238840,-186.70227275,0.00034791,30]
[381990924,1756468238849,-10691.6225033,0.00034962,2]
[381990926,1756468238859,-3538.1277894,0.00034962,2]
[381990928,1756468238868,-1465.63037264,0.00034962,2]
[381990930,1756468238878,-500.0,0.00034973,5]
[381990932,1756468238887,-500.0,0.00034973,5]
[381990935,1756468238897,-150.0,0.00034973,5]
[381990936,1756468238906,-500.0,0.00034973,5]
[381990938,1756468238915,-500.0,0.00034973,5]
[381990940,1756468238924,-187.30231734,0.00034973,5]
[381990942,1756468238933,-500.0,0.00034973,5]
[381990944,1756468238944,-500.0,0.00034973,5]
[381990946,1756468238953,-185.71339442,0.00034973,2]
[381990948,1756468238963,-638.85027099,0.0003498,2]
[381990950,1756468238972,-33490.49262577,0.00034983,2]
[381990952,1756468238982,-382.06,0.00035042,10]
[381990954,1756468238992,-318.38,0.00035042,10]
[381990956,1756468239001,-28699.03,0.00035052,7]
[381990959,1756468239011,-500.0,0.00035062,7]
[381990961,1756468239021,-367.18581717,0.00035062,7]
[381990962,1756468239031,-249.10081232,0.00035062,7]
[381990964,1756468239043,-94578.62852345,0.00035063,2]
[381991100,1756468240317,-75388.40804662,0.00035063,2]
[381991382,1756468243165,-634.596039,0.00024953,6]
[381994021,1756468609762,180.972056,0.00013699,2]
[381994024,1756469158125,-168.46392776,0.00019296,2]
[381994025,1756469158147,-238.46204637,0.00019491,2]
[381994026,1756469235105,-150.09593722,0.00019491,2]
[381994027,1756469238101,-3052.05926528,0.00019491,2]
[381994028,1756469254113,-157.36731523,0.00019296,2]
[381994029,1756469355039,155.0,0.00027397,120]
[381994030,1756469359101,-4842.63268477,0.00019296,2]
[381994031,1756469359123,-156.06169757,0.00019987,2]
[381994032,1756469359144,-180.972056,0.00020187,2]
[381994033,1756469359166,-1004.947223,0.00022207,2]
[381994034,1756469359188,-165.991663,0.00022385,2]
[381994035,1756469361071,-666.0,0.00022944,2]
[381994036,1756469361092,-1000.0,0.00023702,2]
[381994037,1756469361112,-1200.0,0.00023999,2]
[381994038,1756469361135,-216.21406313,0.00024,7]
[381994039,1756469361159,-300.0,0.00024171,2]
[381994040,1756469361182,-222.0,0.00024172,2]
[381994041,1756469361325,-36147.23724007,0.00024172,2]
[381994042,1756469370076,-5000.0,0.0002393,2]
[381994043,1756469370096,-3474.27329318,0.00024172,2]
[381994044,1756469370117,-500.0,0.00024173,2]
[381994045,1756469370138,-904.27092079,0.00024173,2]
[381994046,1756469370158,-786.7105545,0.00024202,2]
[381994053,1756469432363,-861.58246797,0.0002396,6]
[381994054,1756469432373,-160.05387014,0.00024103,2]
[381994055,1756469432383,-413.2894455,0.00024202,2]
[381994056,1756469432392,-1000.86240959,0.00024203,2]
[381994057,1756469432402,-518.393383,0.00024204,2]
[381994058,1756469432410,-200.0,0.00024658,2]
[381994059,1756469432420,-500.0,0.00024962,2]
[381994060,1756469432429,-216.21406313,0.00025,10]
[381994061,1756469432438,-216.21406313,0.00025,10]
[381994063,1756469432448,-216.21406313,0.00025,10]
[381994065,1756469432457,-213.158183,0.00025252,2]
[381994067,1756469432467,-155.0,0.00025271,2]
[381994069,1756469432476,-160.0,0.00025272,2]
[381994071,1756469432485,-160.0,0.00025272,2]
[381994074,1756469432496,-1200.0,0.00025776,2]
[381994077,1756469432505,-300.0,0.00025777,2]
[381994080,1756469432515,-300.0,0.00025777,2]
[381994082,1756469432527,-300.0,0.00025777,2]
[381994085,1756469432536,-300.0,0.00025777,2]
[381994088,1756469432547,-300.0,0.00025777,2]
[381994090,1756469432556,-193.547485,0.00025778,2]
[381994092,1756469432566,-155.9,0.00025778,11]
[381994094,1756469432576,-845.57753514,0.00026025,2]
[381994096,1756469432585,-160.0,0.00026025,2]
[381994110,1756469432713,-232.6790651,0.00026025,2]
[381994112,1756469432723,-160.0,0.00026025,2]
[381994114,1756469432733,-217.30324474,0.00026025,2]
[381994116,1756469432742,-425.57542551,0.00026025,2]
[381994118,1756469432751,-216.21406313,0.00026025,2]
[381994120,1756469432760,-160.0,0.00026025,2]
[381994122,1756469432770,-160.0,0.00026028,2]
[381994124,1756469432780,-160.0,0.00026029,2]
[381994126,1756469432789,-162.422949,0.00026044,2]
[381994128,1756469432798,-1491.0,0.0002624,2]
[381994130,1756469432808,-380.0,0.0002624,2]
[381994132,1756469432817,-180.972056,0.00026676,2]
[381994134,1756469432826,-165.991663,0.00026951,2]
[381994136,1756469432835,-154.84,0.00027683,15]
[381994138,1756469432844,-150.37,0.00027693,15]
[381994140,1756469432853,-150.51,0.00027696,15]
[381994142,1756469432863,-154.91814989,0.00027696,15]
[381994144,1756469432872,-154.84,0.00027783,15]
[381994146,1756469432881,-150.37,0.00027793,15]
[381994148,1756469432892,-154.84,0.00027883,15]
[381994150,1756469432902,-420.0,0.00027903,2]
[381994152,1756469432912,-160.0,0.0002798,2]
[381994154,1756469432922,-154.84,0.00027983,15]
[381994156,1756469432931,-425.57542551,0.00028,10]
[381994158,1756469432941,-1680.0,0.00028027,2]
[381994160,1756469432950,-500.0,0.00028083,15]
[381994162,1756469432959,-151.0,0.00028083,15]
[381994164,1756469432969,-153.71832537,0.00028083,14]
[381994166,1756469432979,-500.0,0.00028083,2]
[381994168,1756469432988,-154.84,0.00028083,15]
[381994170,1756469432997,-154.84,0.00028183,15]
[381994172,1756469433007,-162.6457,0.00028223,20]
[381994174,1756469433016,-154.84,0.00028283,15]
[381994176,1756469433026,-500.0,0.00028357,15]
[381994178,1756469433036,-226.46831206,0.00028357,15]
[381994180,1756469433046,-500.0,0.00028357,2]
[381994182,1756469433055,-154.84,0.00028383,15]
[381994184,1756469433064,-154.84,0.00028483,15]
[381994186,1756469433075,-260.0,0.00028528,2]